bitfinex/quotes_SOLUSD_20260113
["timestamp","ask_amount","ask_price","bid_price","bid_amount"]
[1768315047734,0.68482615,143.56,143.5,6.00242827]
[1768315048047,5.31558166,143.54,143.48,0.68684661]
[1768315048361,0.68482615,143.56,143.5,12.28422277]
[1768315048663,5.31558166,143.55,143.5,6.96864111]
[1768315048835,6.00040781,143.56,143.5,7.65548772]
[1768315049030,0.68482615,143.58,143.52,6.00242827]
[1768315049234,5.31558166,143.59,143.53,5.31558166]
[1768315049430,0.68482615,143.6,143.52,0.68684661]
[1768315049754,6.00040781,143.59,143.52,6.00242827]
[1768315049956,5.31558166,143.57,143.51,5.31558166]
[1768315050134,0.68482615,143.58,143.52,5.31558166]
[1768315050334,5.31558166,143.56,143.51,7.6548259]
[1768315050662,0.68482615,143.57,143.47,22.36695731]
[1768315050663,0.68482615,143.55,143.47,22.36695731]
[1768315050842,5.31558166,143.51,143.45,0.68684661]
[1768315051041,0.68482615,143.52,143.48,6.9692634]
[1768315051242,5.31558166,143.53,143.49,6.96874508]
[1768315051468,6.00040781,143.55,143.5,6.96855299]
[1768315051655,0.68482615,143.58,143.51,6.96797649]
[1768315051957,5.31558166,143.56,143.51,7.6548231]
[1768315052158,0.68482615,143.56,143.49,13.38684661]
[1768315052339,0.68482615,143.55,143.49,19.66875142]
[1768315052540,5.31558166,143.54,143.49,19.66875142]
[1768315052963,5.31558166,143.56,143.49,43.09399661]
[1768315053156,0.68482615,143.59,143.52,6.00242827]
[1768315053342,6.00040781,143.58,143.52,0.68684661]
[1768315053534,0.68482615,143.58,143.52,0.68684661]
[1768315053734,6.00040781,143.58,143.52,0.68684661]
[1768315053953,5.31558166,143.57,143.52,0.68684661]
[1768315054132,6.00040781,143.53,143.48,6.96961175]
[1768315054339,6.00040781,143.52,143.48,6.96961175]
[1768315054539,6.00040781,143.52,143.45,6.00242827]
[1768315054540,0.68482615,143.52,143.46,24.39623553]
[1768315054858,5.31558166,143.51,143.46,6.97058413]
[1768315055349,0.68440664,143.55,143.47,5.99512779]
[1768315055545,5.31558166,143.52,143.47,0.67954613]
[1768315056556,0.68440664,143.56,143.49,6.96912676]
[1768315056953,5.31558166,143.52,143.48,6.96953873]
[1768315057461,0.68440664,143.53,143.48,6.96953873]
[1768315057667,5.31558166,143.51,143.47,6.97007879]
[1768315057960,5.31558166,143.48,143.43,6.97164677]
[1768315058162,5.31558166,143.48,143.42,18.11036026]
[1768315058457,5.31558166,143.46,143.42,6.97248721]
[1768315058834,0.68440664,143.52,143.43,0.67954613]
[1768315059037,5.31558166,143.48,143.43,0.67954613]
[1768315059259,5.31558166,143.47,143.43,0.67954613]
[1768315059461,5.31558166,143.45,143.41,7.85253786]
[1768315060158,0.68440664,143.46,143.41,7.17299173]
[1768315060464,0.68435628,143.41,143.34,0.67954613]
[1768315060641,5.31558166,143.4,143.35,25.09493405]
[1768315060969,5.31558166,143.39,143.35,7.65547916]
[1768315061139,5.31558166,143.38,143.34,6.97632777]
[1768315061336,5.31558166,143.37,143.33,0.2]
[1768315061644,5.31558166,143.36,143.33,7.17653633]
[1768315061845,0.68440664,143.41,143.34,24.41743698]
[1768315062043,5.31558166,143.4,143.35,0.67954613]
[1768315062340,5.31558166,143.37,143.34,6.97638773]
[1768315062550,0.67937025,143.4,143.34,24.41743698]
[1768315062860,5.31558166,143.39,143.34,24.41743698]
[1768315063249,0.68440664,143.42,143.35,0.67954613]
[1768315063438,5.31558166,143.39,143.35,0.67954613]
[1768315063638,5.31558166,143.4,143.34,24.41743698]
[1768315063858,5.31558166,143.4,143.34,25.09698311]
[1768315064164,5.99495191,143.41,143.34,25.09698311]
[1768315064348,5.99495191,143.41,143.34,30.41256477]
[1768315064549,0.67937025,143.41,143.36,6.97544642]
[1768315065056,5.99495191,143.41,143.36,6.97544642]
[1768315065237,0.68440664,143.43,143.37,5.99512779]
[1768315065441,0.68440664,143.45,143.38,5.31558166]
[1768315065654,5.31558166,143.44,143.38,5.31558166]
[1768315065967,0.68440664,143.45,143.39,5.99512779]
[1768315066169,5.9999883,143.45,143.39,0.67954613]
[1768315066765,5.9999883,143.45,143.39,7.65337048]
[1768315066949,5.99993794,143.48,143.41,5.31558166]
[1768315067142,0.68440664,143.51,143.43,5.99512779]
[1768315067344,0.68440664,143.51,143.42,5.99512779]
[1768315067652,0.68440664,143.51,143.43,5.99512779]
[1768315067854,5.31558166,143.49,143.43,0.67954613]
[1768315068443,5.31558166,143.49,143.43,5.99512779]
[1768315068765,5.31558166,143.5,143.44,7.65076775]
[1768315068954,5.31558166,143.47,143.42,6.97238128]
[1768315069154,5.31558166,143.48,143.42,7.65195082]
[1768315069362,0.67942011,143.48,143.42,0.67954613]
[1768315069565,0.68440664,143.5,143.43,6.97168839]
[1768315069758,5.31558166,143.48,143.44,6.97145554]
[1768315069958,0.68440664,143.52,143.45,0.67954613]
[1768315070141,0.68440664,143.52,143.46,0.67954613]
[1768315070762,5.31558166,143.51,143.46,7.65005942]
[1768315071180,5.31558166,143.51,143.38,34.10568579]
[1768315071181,5.31558166,143.47,143.35,30.0]
[1768315071366,5.31558166,143.47,143.43,6.97192749]
[1768315071878,0.68430691,143.48,143.43,6.97192749]
[1768315072083,5.31558166,143.47,143.44,6.9714172]
[1768315072262,0.68440664,143.5,143.44,6.9714172]
[1768315072457,5.31558166,143.48,143.45,6.97106081]
[1768315072967,5.31558166,143.48,143.43,7.65158824]
[1768315073282,0.68435628,143.5,143.43,25.08169351]
[1768315073457,5.31558166,143.49,143.45,0.67954613]
[1768315073657,5.31558166,143.5,143.45,0.67954613]
[1768315074058,5.31558166,143.49,143.45,0.67954613]
[1768315074563,5.31558166,143.5,143.45,0.67954613]
[1768315074974,5.31558166,143.49,143.44,6.97134483]
[1768315075360,6.96864111,143.5,143.44,6.97134483]
[1768315075682,7.65299739,143.5,143.44,6.97134483]
[1768315075883,5.99988857,143.48,143.42,6.97208355]
[1768315076064,5.99988857,143.48,143.43,6.97193579]
[1768315077084,5.99988857,143.48,143.42,6.97252823]
[1768315077384,5.99988857,143.48,143.42,24.40384882]
[1768315077560,5.9999883,143.5,143.44,0.67954613]
[1768315078183,0.68440664,143.5,143.45,5.31558166]
[1768315078380,6.96750055,143.53,143.45,5.31558166]
[1768315078381,5.9999883,143.52,143.45,5.99512779]
[1768315078691,0.68440664,143.52,143.46,5.99512779]
[1768315078980,0.68440664,143.52,143.47,6.97009827]
[1768315079182,0.68440664,143.52,143.47,12.28567993]
[1768315079385,0.68440664,143.52,143.47,6.97009827]
[1768315079682,0.68440664,143.54,143.48,5.99512779]
[1768315079867,0.68440664,143.54,143.49,5.31558166]
[1768315080060,0.68440664,143.56,143.49,5.99512779]
[1768315080282,0.68440664,143.56,143.5,5.99512779]
[1768315080585,5.99993794,143.54,143.47,25.07489009]
[1768315080764,5.99993794,143.56,143.49,5.99512779]
[1768315080967,0.68435628,143.56,143.5,29.70582555]
[1768315081286,5.99993794,143.56,143.5,29.70582555]
[1768315081779,5.99993794,143.56,143.5,30.38537168]
[1768315081971,0.68435628,143.56,143.5,30.38537168]
[1768315082173,5.31558166,143.58,143.52,0.67954613]
[1768315082358,103.4,143.67,143.56,0.67954613]
[1768315082562,5.31558166,143.61,143.56,0.67954613]
[1768315082793,12.72,143.66,143.56,5.99512779]
[1768315082794,19.68087985,143.66,143.56,5.99512779]
[1768315082961,5.31558166,143.64,143.58,24.37665412]
[1768315083167,6.96148283,143.65,143.58,25.05620025]
[1768315083367,6.96148283,143.65,143.55,5.99512779]
[1768315083368,5.31558166,143.62,143.55,5.99512779]
[1768315083662,24.36489389,143.65,143.57,6.9650352]
[1768315083663,5.31558166,143.63,143.57,6.9650352]
[1768315083865,5.31558166,143.63,143.57,7.64458133]
[1768315084066,5.31558166,143.62,143.57,7.64458133]
[1768315084268,0.58628294,143.64,143.57,12.96016299]
[1768315084461,5.31558166,143.62,143.57,6.9650352]
[1768315084672,0.099,143.63,143.57,24.37814378]
[1768315084877,5.41458166,143.63,143.57,24.37814378]
[1768315085075,5.31558166,143.62,143.57,7.64739601]
[1768315085695,0.58628294,143.65,143.58,0.68236081]
[1768315086189,5.31558166,143.63,143.57,6.9650352]
[1768315086363,24.3635235,143.66,143.56,0.68236081]
[1768315086364,5.31558166,143.62,143.56,0.68236081]
[1768315086685,5.31558166,143.62,143.51,49.84062824]
[1768315086686,5.31558166,143.57,143.5,0.68236081]
[1768315086890,5.31558166,143.57,143.52,7.6499436]
[1768315087094,7.55068666,143.59,143.53,6.9670999]
[1768315087291,5.31558166,143.6,143.54,0.68236081]
[1768315087485,103.4,143.63,143.56,0.68236081]
[1768315087790,5.31558166,143.64,143.58,5.99794247]
[1768315088087,0.58628294,143.72,143.63,0.68236081]
[1768315088289,0.58628294,143.72,143.65,0.68236081]
[1768315088463,5.31558166,143.71,143.65,0.68236081]
[1768315088665,5.31558166,143.7,143.65,0.68236081]
[1768315088860,0.58628294,143.72,143.6,21.6801107]
[1768315088861,5.31558166,143.69,143.63,0.68236081]
[1768315089091,5.31558166,143.68,143.63,0.68236081]
[1768315089272,5.31558166,143.67,143.63,0.68236081]
[1768315089479,5.31558166,143.68,143.63,7.64468791]
[1768315089975,5.31558166,143.67,143.61,12.96111697]
[1768315090291,5.31558166,143.67,143.62,6.96270792]
[1768315090476,5.31558166,143.66,143.61,0.68236081]
[1768315090672,0.1038241,143.69,143.61,0.68236081]
[1768315090890,5.31558166,143.63,143.58,6.96461734]
[1768315091075,0.57195343,143.65,143.58,0.68236081]
[1768315091280,5.31558166,143.64,143.58,0.68236081]
[1768315091597,5.31558166,143.63,143.58,0.68236081]
[1768315091783,5.31558166,143.62,143.58,0.68236081]
[1768315091989,5.31558166,143.62,143.57,6.96510569]
[1768315092175,5.31558166,143.61,143.57,6.96510569]
[1768315092373,5.31558166,143.62,143.57,6.96510569]
[1768315092580,5.31558166,143.59,143.53,0.68236081]
[1768315092774,0.56286939,143.61,143.53,0.68236081]
[1768315092990,5.31558166,143.62,143.56,5.99794247]
[1768315093191,5.31558166,143.62,143.57,6.96520689]
[1768315093575,7.54819541,143.64,143.57,6.96520689]
[1768315093793,5.31558166,143.62,143.57,6.96520689]
[1768315093982,5.9018646,143.64,143.57,30.37625794]
[1768315094189,0.58628294,143.66,143.59,5.99794247]
[1768315094374,5.31558166,143.66,143.6,0.68236081]
[1768315094794,7.54633795,143.68,143.6,0.68236081]
[1768315094997,5.31558166,143.66,143.6,0.68236081]
[1768315095175,5.31558166,143.65,143.6,0.68236081]
[1768315095375,5.31558166,143.65,143.61,6.96330339]
[1768315095593,5.31558166,143.66,143.61,6.96330339]
[1768315095792,5.31558166,143.65,143.61,6.96330339]
[1768315095993,5.31558166,143.63,143.58,0.70952203]
[1768315096502,5.31558166,143.64,143.6,6.96364468]
[1768315097001,5.31558166,143.62,143.57,6.96484621]
[1768315097190,5.31558166,143.59,143.54,7.67606706]
[1768315097391,5.31558166,143.58,143.53,6.96703027]
[1768315097592,5.31558166,143.58,143.47,15.0]
[1768315097593,5.31558166,143.55,143.49,6.02510369]
[1768315097793,5.31558166,143.54,143.5,6.96848827]
[1768315097990,0.12217941,143.57,143.49,0.70952203]
[1768315098293,29.68895941,143.6,143.36,26.9831263]
[1768315098294,5.31558166,143.52,143.46,18.13508534]
[1768315098503,5.31558166,143.52,143.47,6.96999065]
[1768315098802,5.31558166,143.51,143.47,6.96999065]
[1768315098977,5.31558166,143.49,143.45,6.97062914]
[1768315099294,5.31558166,143.49,143.44,6.97148271]
[1768315099489,7.51836921,143.51,143.44,6.97148271]
[1768315099697,5.31558166,143.49,143.44,6.97148271]
[1768315099896,0.54991004,143.51,143.44,6.97148271]
[1768315100072,5.31558166,143.49,143.44,6.97148271]
[1768315101503,7.51808745,143.51,143.44,6.97148271]
[1768315101672,5.31558166,143.5,143.44,30.42547652]
[1768315101876,5.31558166,143.51,143.46,0.70952203]
[1768315102204,6.96572861,143.56,143.49,0.70952203]
[1768315102384,5.31558166,143.54,143.49,0.70952203]
[1768315102584,5.31558166,143.53,143.49,0.70952203]
[1768315102785,5.31558166,143.52,143.46,0.70952203]
[1768315103085,5.31558166,143.53,143.47,0.70952203]
[1768315103290,8.65942467,143.53,143.47,0.70952203]
[1768315103609,8.65942467,143.49,143.44,17.42889012]
[1768315103783,8.65942467,143.48,143.44,6.97140418]
[1768315103987,8.65942467,143.47,143.43,0.70952203]
[1768315104218,0.1085522,143.51,143.43,0.70952203]
[1768315104219,8.65942467,143.46,143.43,0.70952203]
[1768315104524,0.57195343,143.5,143.41,0.70952203]
[1768315104719,8.65942467,143.47,143.43,6.97202833]
[1768315104878,8.65942467,143.48,143.44,0.70952203]
[1768315105084,8.65942467,143.47,143.43,6.97202833]
[1768315105282,8.65942467,143.46,143.42,7.68190243]
[1768315105714,8.65942467,143.45,143.42,0.70952203]
[1768315105887,8.65942467,143.43,143.39,0.70952203]
[1768315106085,8.65942467,143.43,143.38,7.68366747]
[1768315106296,8.65942467,143.41,143.37,6.97481786]
[1768315106609,8.65942467,143.39,143.35,0.70952203]
[1768315106989,8.65942467,143.42,143.36,0.70952203]
[1768315107181,8.65942467,143.4,143.36,0.70952203]
[1768315107384,8.65942467,143.39,143.34,0.70952203]
[1768315107586,8.65942467,143.38,143.34,0.70952203]
[1768315107781,8.65942467,143.39,143.34,7.68577883]
[1768315108003,0.57195343,143.39,143.33,0.2]
[1768315108204,8.65942467,143.36,143.33,0.2]
[1768315108410,8.65942467,143.37,143.33,7.17654329]
[1768315108608,8.65942467,143.36,143.33,0.2]
[1768315108987,8.65942467,143.37,143.34,6.97627661]
[1768315109298,8.65942467,143.37,143.34,6.97630412]
[1768315109606,0.58628294,143.41,143.34,7.68582615]
[1768315109811,0.58628294,143.44,143.36,0.70952203]
[1768315110008,0.58628294,143.46,143.36,0.70952203]
[1768315110201,8.65942467,143.44,143.38,0.70952203]
[1768315110393,8.65942467,143.45,143.39,0.70952203]
[1768315110588,8.65942467,143.43,143.39,0.70952203]
[1768315110804,8.65942467,143.41,143.39,0.70952203]
[1768315111004,0.58141011,143.45,143.36,0.70952203]
[1768315111210,8.65942467,143.42,143.36,0.70952203]
[1768315111594,8.65942467,143.38,143.36,7.6845242]
[1768315111899,8.65942467,143.38,143.36,0.70952203]
[1768315112495,8.65942467,143.39,143.36,0.70952203]
[1768315112821,8.65942467,143.41,143.36,7.68490357]
[1768315113211,8.65942467,143.41,143.36,25.12351964]
[1768315113601,8.65942467,143.41,143.38,6.97447342]
[1768315113919,8.65942467,143.44,143.39,0.70952203]
[1768315114225,8.65942467,143.43,143.39,0.70952203]
[1768315114720,8.65942467,143.42,143.38,6.97447342]
[1768315114927,8.65942467,143.41,143.38,6.97447342]
[1768315115232,8.77715267,143.39,143.32,0.6947427]
[1768315115393,8.65942467,143.37,143.33,7.17677194]
[1768315115707,8.65942467,143.36,143.33,0.8947427]
[1768315115912,8.65942467,143.34,143.33,0.2]
[1768315116224,8.65942467,143.35,143.33,0.2]
[1768315116511,7.55576002,143.39,143.33,0.2]
[1768315116807,8.65942467,143.36,143.33,7.87143826]
[1768315117315,8.65942467,143.35,143.33,7.17680046]
[1768315117813,8.65942467,143.36,143.33,7.17680046]
[1768315118015,8.65942467,143.34,143.33,0.2]
[1768315118204,8.65942467,143.35,143.33,0.2]
[1768315118404,8.65942467,143.36,143.33,7.1768675]
[1768315118606,8.65942467,143.35,143.33,0.2]
[1768315118809,8.65942467,143.35,143.33,7.17683324]
[1768315118993,8.65942467,143.35,143.33,0.2]
[1768315119312,0.10926561,143.33,143.25,4.33262839]
[1768315119502,0.10926561,143.33,143.22,20.7620806]
[1768315119503,8.65942467,143.27,143.23,0.6947427]
[1768315119911,8.65942467,143.27,143.24,6.98129014]
[1768315120116,0.37324715,143.32,143.24,7.67603284]
[1768315120316,8.65942467,143.29,143.25,0.6947427]
[1768315120630,8.65942467,143.28,143.24,24.43451549]
[1768315120812,24.4176422,143.34,143.25,0.6947427]
[1768315120813,8.65942467,143.3,143.25,0.6947427]
[1768315121317,6.97659295,143.34,143.24,6.98129014]
[1768315121318,8.65942467,143.28,143.24,6.98129014]
[1768315122614,8.65942467,143.27,143.24,6.98129014]
[1768315122817,0.1018441,143.3,143.22,0.2]
[1768315123018,8.65942467,143.27,143.22,0.8947427]
[1768315123196,0.1018441,143.3,143.22,0.8947427]
[1768315123396,8.65942467,143.26,143.22,0.8947427]
[1768315123615,8.65942467,143.26,143.22,7.876885]
[1768315123805,8.65942467,143.25,143.22,7.876885]
[1768315124115,8.65942467,143.25,143.22,7.18212276]
[1768315124316,0.38059445,143.29,143.22,7.87686546]
[1768315124491,6.97851144,143.3,143.22,7.18212276]
[1768315124492,8.65942467,143.26,143.22,7.18212276]
[1768315124691,8.65942467,143.25,143.22,0.2]
[1768315124891,0.37783482,143.27,143.22,0.09155188]
[1768315124892,8.65942467,143.23,143.22,0.09155188]
[1768315125313,8.65942467,143.23,143.16,0.6947427]
[1768315125515,0.18628294,143.27,143.18,0.6947427]
[1768315125717,8.65942467,143.24,143.19,0.6947427]
[1768315125902,8.65942467,143.23,143.17,25.14120493]
[1768315126215,6.98088066,143.25,143.15,0.1735107]
[1768315126216,8.65942467,143.18,143.15,0.1735107]
[1768315126519,8.65942467,143.16,143.12,17.46744384]
[1768315126816,8.65942467,143.15,143.11,6.98763189]
[1768315127208,8.65942467,143.16,143.11,7.68237459]
[1768315127411,8.65942467,143.16,143.11,25.15145431]
[1768315127724,8.65942467,143.15,143.11,6.98763189]
[1768315127900,8.65942467,143.15,143.09,24.45982143]
[1768315128099,8.65942467,143.15,143.09,25.15456413]
[1768315128305,8.65942467,143.2,143.1,0.6947427]
[1768315128506,8.65942467,143.16,143.1,0.6947427]
[1768315128719,8.65942467,143.14,143.1,0.6947427]
[1768315128894,8.65942467,143.15,143.1,0.6947427]
[1768315129101,8.65942467,143.13,143.09,6.98860856]
[1768315129321,45.82079212,143.2,143.09,25.15487268]
[1768315129522,8.65942467,143.14,143.09,25.15487268]
[1768315129718,45.82079212,143.2,143.09,25.15487268]
[1768315129911,8.65942467,143.14,143.09,25.15487268]
[1768315130223,15.64269157,143.2,143.1,0.6947427]
[1768315130521,8.65942467,143.16,143.1,0.6947427]
[1768315130712,8.65942467,143.16,143.12,7.3748534]
[1768315131023,8.65942467,143.14,143.09,31.83498338]
[1768315131220,15.64269157,143.2,143.1,0.6947427]
[1768315131524,6.9832669,143.2,143.1,9.35416737]
[1768315131817,8.65942467,143.17,143.11,0.6947427]
[1768315132032,17.45362199,143.24,143.13,0.6947427]
[1768315132198,8.65942467,143.18,143.13,0.6947427]
[1768315132397,8.65942467,143.17,143.13,0.6947427]
[1768315132813,17.45362199,143.24,143.13,0.6947427]
[1768315133020,6.98080279,143.25,143.14,0.6947427]
[1768315133199,8.65942467,143.23,143.17,0.6947427]
[1768315133399,8.65942467,143.22,143.17,0.6947427]
[1768315133621,6.98080279,143.25,143.15,0.6947427]
[1768315134120,8.65942467,143.21,143.18,6.98421567]
[1768315134422,6.97994962,143.27,143.18,25.13949755]
[1768315134619,12.74,143.27,143.19,0.6947427]
[1768315134817,8.65942467,143.24,143.19,0.6947427]
[1768315135017,15.63893535,143.28,143.19,0.6947427]
[1768315135018,8.65942467,143.25,143.19,0.6947427]
[1768315135322,8.65942467,143.25,143.2,0.6947427]
[1768315135823,8.65942467,143.26,143.2,0.6947427]
[1768315136229,8.65942467,143.26,143.21,7.6774953]
[1768315136422,8.65942467,143.25,143.21,7.6774953]
[1768315136622,12.74,143.28,143.21,7.6774953]
[1768315136623,8.65942467,143.26,143.21,7.6774953]
[1768315136815,6.97897528,143.29,143.22,0.6947427]
[1768315137017,19.71897528,143.29,143.22,0.6947427]
[1768315137206,8.65942467,143.27,143.22,0.6947427]
[1768315137620,8.65942467,143.26,143.22,0.6947427]
[1768315137825,37.16611046,143.29,143.22,0.6947427]
[1768315138105,37.16611046,143.29,143.2,7.67798292]
[1768315138106,8.65942467,143.25,143.2,7.67798292]
[1768315138511,8.65942467,143.25,143.21,0.6947427]
[1768315138722,17.44501823,143.31,143.22,0.6947427]
[1768315138945,8.65942467,143.26,143.22,0.6947427]
[1768315140007,17.44591765,143.3,143.22,0.6947427]
[1768315140208,21.39942467,143.27,143.22,0.6947427]
[1768315140523,12.74,143.27,143.22,7.67700286]
[1768315140723,8.65942467,143.27,143.23,0.6947427]
[1768315141032,12.74,143.28,143.23,0.6947427]
[1768315141033,8.65942467,143.25,143.23,0.6947427]
[1768315141229,8.65942467,143.27,143.23,0.6947427]
[1768315141409,24.4213743,143.32,143.22,6.98226016]
[1768315141410,8.65942467,143.28,143.22,6.98226016]
[1768315141617,8.65942467,143.27,143.22,6.98226016]
[1768315141838,8.65942467,143.28,143.22,6.98226016]
[1768315142039,17.44130467,143.34,143.23,0.6947427]
[1768315142242,8.65942467,143.3,143.25,0.6947427]
[1768315142411,8.65942467,143.27,143.23,0.6947427]
[1768315142607,12.74,143.32,143.23,0.6947427]
[1768315142826,6.97593303,143.35,143.26,0.6947427]
[1768315143019,6.97593303,143.35,143.27,0.6947427]
[1768315143020,8.65942467,143.33,143.27,0.6947427]
[1768315143228,8.65942467,143.34,143.28,0.6947427]
[1768315143423,8.65942467,143.33,143.28,0.6947427]
[1768315143820,8.65942467,143.31,143.28,0.6947427]
[1768315144024,26.09884095,143.36,143.28,0.6947427]
[1768315144225,8.65942467,143.32,143.28,0.6947427]
[1768315144424,8.65942467,143.31,143.28,0.6947427]
[1768315144915,8.65942467,143.31,143.27,7.68021824]
[1768315145329,21.24047868,143.45,143.29,0.70043322]
[1768315145330,17.43536403,143.39,143.29,0.70043322]
[1768315145524,12.74,143.38,143.29,0.70043322]
[1768315145727,12.74,143.38,143.27,8.65942467]
[1768315145728,8.65942467,143.31,143.27,7.67982698]
[1768315145942,8.65942467,143.3,143.27,7.67982698]
[1768315146327,21.39942467,143.32,143.28,0.70043322]
[1768315146636,21.39942467,143.33,143.28,0.70043322]
[1768315146814,8.65942467,143.36,143.3,0.70043322]
[1768315147016,12.74,143.37,143.3,0.70043322]
[1768315147217,8.65942467,143.31,143.26,7.68058073]
[1768315147539,8.62942468,143.3,143.26,7.68058073]
[1768315147741,8.62942468,143.3,143.27,0.70043322]
[1768315147944,8.62942468,143.3,143.27,7.68021774]
[1768315148315,12.74,143.33,143.28,0.70043322]
[1768315148742,6.97661182,143.34,143.28,0.70043322]
[1768315148940,8.65942467,143.31,143.28,0.70043322]
[1768315149635,6.97661182,143.34,143.28,0.70043322]
[1768315149837,8.65942467,143.32,143.28,0.70043322]
[1768315150138,8.65942467,143.34,143.3,0.70043322]
[1768315150345,8.65942467,143.35,143.3,0.70043322]
[1768315150668,8.65942467,143.36,143.3,0.70043322]
[1768315150815,8.65942467,143.36,143.31,0.70043322]
[1768315151015,8.65942467,143.38,143.32,0.70043322]
[1768315151732,8.65942467,143.37,143.32,0.70043322]
[1768315152343,12.74,143.4,143.32,0.70043322]
[1768315152344,12.74,143.4,143.34,0.70043322]
[1768315152642,8.65942467,143.38,143.34,0.70043322]
[1768315152819,8.65942467,143.39,143.34,0.70043322]
[1768315153419,6.97107005,143.45,143.37,0.70043322]
[1768315153615,8.65942467,143.42,143.37,0.70043322]
[1768315154242,6.97358366,143.4,143.37,0.70043322]
[1768315154453,8.65942467,143.39,143.35,7.67601825]
[1768315154662,8.65942467,143.39,143.35,0.70043322]
[1768315155038,8.65942467,143.41,143.35,0.70043322]
[1768315155244,8.65942467,143.39,143.35,0.70043322]
[1768315155461,0.67255777,143.4,143.33,7.67702129]
[1768315155958,8.65942467,143.38,143.33,25.11928738]
[1768315156670,138.25274581,143.47,143.36,0.69636978]
[1768315156671,0.7014485,143.46,143.36,0.69636978]
[1768315156847,8.65942467,143.43,143.37,0.69636978]
[1768315157940,8.65942467,143.43,143.37,9.35579445]
[1768315158550,8.65942467,143.43,143.38,6.97447342]
[1768315159059,12.72,143.46,143.39,0.69636978]
[1768315159237,8.65942467,143.46,143.41,0.69636978]
[1768315159439,19.68968202,143.48,143.41,0.69636978]
[1768315159744,8.65942467,143.46,143.41,0.69636978]
[1768315160254,8.65942467,143.45,143.41,0.69636978]
[1768315160637,6.97126809,143.45,143.39,0.69636978]
[1768315160838,6.97126809,143.45,143.35,0.69636978]
[1768315160839,8.65942467,143.4,143.35,0.69636978]
[1768315161134,8.65942467,143.37,143.35,0.69636978]
[1768315161340,8.65942467,143.36,143.35,0.69636978]
[1768315161562,8.65942467,143.38,143.35,0.69636978]
[1768315161760,8.65942467,143.37,143.35,0.69636978]
[1768315162240,8.65942467,143.38,143.35,0.69636978]
[1768315162439,12.72,143.39,143.35,0.69636978]
[1768315162440,8.65942467,143.37,143.35,0.69636978]
[1768315162646,19.69406945,143.39,143.35,0.69636978]
[1768315162849,8.65942467,143.37,143.35,0.69636978]
[1768315163043,0.7014485,143.44,143.36,0.69636978]
[1768315163241,12.72,143.45,143.37,0.69636978]
[1768315163649,8.65942467,143.43,143.38,0.69636978]
[1768315163860,8.65942467,143.42,143.38,0.69636978]
[1768315164239,12.8549605,143.45,143.38,0.69636978]
[1768315164461,8.65942467,143.41,143.38,0.69636978]
[1768315164970,8.65942467,143.42,143.38,7.67081343]
[1768315165268,8.65942467,143.41,143.38,7.67081343]
[1768315165464,6.97248419,143.43,143.38,7.67081343]
[1768315165698,6.97173114,143.44,143.39,0.69636978]
[1768315165867,5.33676004,143.42,143.39,0.69636978]
[1768315166072,5.33676004,143.41,143.39,0.69636978]
[1768315166269,5.33676004,143.4,143.36,0.69636978]
[1768315166582,5.33676004,143.39,143.36,7.67169061]
[1768315166948,0.69023147,143.42,143.36,7.67169061]
[1768315167161,19.82706661,143.43,143.36,6.97532083]
[1768315167364,0.69578362,143.45,143.38,0.69636978]
[1768315167671,5.33676004,143.43,143.38,0.69636978]
[1768315167974,5.33676004,143.42,143.38,0.69636978]
[1768315168158,0.69578362,143.45,143.38,0.69636978]
[1768315168361,5.33676004,143.42,143.39,6.97398702]
[1768315168562,5.33676004,143.41,143.38,7.67081006]
[1768315168875,5.33676004,143.4,143.36,7.67167015]
[1768315169258,24.5410149,143.44,143.37,7.67128968]
[1768315169556,5.33676004,143.4,143.37,7.67128968]
[1768315169765,29.87777494,143.44,143.37,0.69636978]
[1768315169975,5.33676004,143.4,143.37,0.69636978]
[1768315170156,5.33676004,143.4,143.37,7.6709965]
[1768315170473,19.69138763,143.45,143.39,0.69636978]
[1768315170677,17.42710383,143.46,143.39,0.69636978]
[1768315170678,5.33676004,143.43,143.39,0.69636978]
[1768315171052,19.69063038,143.46,143.39,0.69636978]
[1768315171257,5.33676004,143.43,143.39,0.69636978]
[1768315171858,5.33676004,143.44,143.39,0.69636978]
[1768315172058,5.33676004,143.43,143.39,0.69636978]
[1768315172277,34.84124202,143.51,143.41,0.69636978]
[1768315172278,0.7014485,143.49,143.41,0.69636978]
[1768315172454,5.33676004,143.45,143.42,6.97252823]
[1768315173268,5.33676004,143.44,143.42,6.97252823]
[1768315173574,0.69578362,143.47,143.4,7.66956062]
[1768315173773,5.33676004,143.43,143.4,7.66956062]
[1768315174580,5.33676004,143.42,143.4,0.69636978]
[1768315174776,17.56702906,143.46,143.4,0.69636978]
[1768315175077,5.33676004,143.44,143.4,7.66979856]
[1768315175981,5.33676004,143.43,143.4,7.66979856]
[1768315176555,0.16760418,143.4,143.33,0.65786993]
[1768315176757,5.33676004,143.4,143.36,6.97514053]
[1768315176992,5.33676004,143.39,143.36,6.97514053]
[1768315177198,5.33676004,143.4,143.36,7.63301046]
[1768315177402,0.16254488,143.42,143.36,7.63301046]
[1768315177609,5.33676004,143.42,143.37,0.65786993]
[1768315177773,13.39879966,143.45,143.38,0.65786993]